Cogmind - Beta 12 @@@ ROGUE MODE // 2023.03.28 @ 01:15:29 Player: dhtilly Result: Destroyed by B-90 Cyclops with Nova Cannon Performance ------------- Evolutions (4) 2000 Regions Visited (10) 2000 Robots Destroyed (127) 635 Value Destroyed (4905) 4905 Prototype IDs (10) 200 Alien Tech Used (0) 0 Bonus (776) 776 TOTAL SCORE: 10516 Bonus ------- High Alert Combat Kills 576 Entered Garrisons 200 Cogmind --------- Core Integrity 0/850 Matter 285/300 Energy 100/100 System Corruption 1% Temperature Cool (9) Movement Core (250) Ox4 Location -6/Garrison Parts ------- > --- POWER (1) -------- (None) > --- PROPULSION (5) --- (None) > --- UTILITY (7) ------ Medium Storage Unit Improved Signal Interpreter Improved Melee Analysis Suite Target Analyzer Transmission Jammer > --- WEAPON (2) ------- Spear > --- INVENTORY (10) --- Improved Heat Sink Huge Storage Unit Improved Hacking Suite System Shield Heavy Rocket Launcher Remote Datajack Peak State ------------ > --- POWER ------------ Cooled Deuterium Engine > --- PROPULSION ------- Improved VTOL Module Improved VTOL Module Improved Cesium-ion Thruster Improved Cesium-ion Thruster Improved Cesium-ion Thruster > --- UTILITY ---------- Medium Storage Unit Improved Signal Interpreter Improved Melee Analysis Suite Target Analyzer Improved Light Armor Plating Hacking Suite Hacking Suite > --- WEAPON ----------- Greatsword > --- INVENTORY -------- Light Fission Core Improved Heat Sink Huge Storage Unit Transmission Jammer Improved Hacking Suite System Shield Heavy Rocket Launcher Remote Datajack Ripper [Rating: 59] Favorites ----------- Power Improved Deuterium Engine Engine Improved Deuterium Engine Power Core Micro Nuclear Core Propulsion Light Treads Treads Light Treads Leg Aluminum Leg Flight Unit Improved VTOL Module Utility Hacking Suite Device Seismic Detector Storage High-capacity Storage Unit Processor Targeting Computer Hackware Hacking Suite Protection Layered Light Armor Plating Weapon Improved Assault Rifle Ballistic Gun Improved Assault Rifle Ballistic Cannon Improved Light Cannon Launcher Rocket Launcher Special Weapon Remote Datajack Slashing Weapon Mining Claw Piercing Weapon Spear Build | -11 -10 -10 -10 -9 -8 -7 -7 -7 -6 -6 ------- Run | Jun Mat Min Exi Min Mat Fac Low Low Fac Gar Slots Evolved 8 | . . . . . 4 2 . . 2 . Power . | . . . . . . . . . . . Propulsion 3 | . . . . . 2 . . . 1 . Utility 5 | . . . . . 2 2 . . 1 . Weapon . | . . . . . . . . . . . Parts Attached 167 | 6 12 16 3 5 52 32 2 4 21 14 Power 19 | 1 1 1 . 1 3 6 . . 3 3 Engine 12 | 1 1 1 . 1 2 4 . . 1 1 Core 7 | . . . . . 1 2 . . 2 2 Reactor . | . . . . . . . . . . . Propulsion 34 | 2 2 1 . . 15 9 . 1 3 1 Treads 11 | . 2 1 . . 8 . . . . . Leg 2 | 2 . . . . . . . . . . Wheel . | . . . . . . . . . . . Hover . | . . . . . . . . . . . Flight 21 | . . . . . 7 9 . 1 3 1 Utility 55 | 1 4 3 2 . 20 12 . . 10 3 Device 27 | . 1 2 . . 12 3 . . 7 2 Storage 4 | 1 1 . 1 . 1 . . . . . Processor 8 | . 1 . . . 1 6 . . . . Hackware 6 | . . . . . 3 2 . . 1 . Protection 10 | . 1 1 1 . 3 1 . . 2 1 Artifact . | . . . . . . . . . . . Weapon 59 | 2 5 11 1 4 14 5 2 3 5 7 Energy Gun . | . . . . . . . . . . . Energy Cannon . | . . . . . . . . . . . Ballistic Gun 14 | 2 2 6 . 2 2 . . . . . Ballistic Cannon 9 | . 2 . . 2 5 . . . . . Launcher 21 | . 1 5 1 . 4 2 2 2 . 4 Special Weapon 2 | . . . . . . 1 . . . 1 Impact Weapon . | . . . . . . . . . . . Slashing Weapon 12 | . . . . . 3 2 . 1 4 2 Piercing Weapon 1 | . . . . . . . . . 1 . Special Melee Weapon . | . . . . . . . . . . . Unidentified Prototypes 6 | . 1 . . . 3 1 . . 1 . Parts Lost 32 | . . . . . 9 7 . 1 2 13 Power 6 | . . . . . 1 2 . . . 3 Propulsion 16 | . . . . . 6 2 . 1 1 6 Utility 7 | . . . . . . 3 . . 1 3 Weapon 3 | . . . . . 2 . . . . 1 Highest Loss Streak 10 | . . . . . 3 3 . 1 2 10 To Critical Strikes . | . . . . . . . . . . . Average Slot Usage (%) 96 | . 98 100 100 100 95 88 92 92 95 86 Engine 8 | . 14 14 14 14 8 1 . . . . Core 1 | . . . . . . 4 7 7 6 5 Treads 21 | . 25 28 28 28 30 . . . . . Flight 8 | . . . . . 3 29 30 30 32 32 Device 6 | . 6 13 13 . 7 6 . . 4 1 Storage 10 | . 14 14 14 14 9 7 7 7 6 6 Processor 8 | . 4 . . . 8 14 23 23 20 20 Hackware 3 | . . . . . 1 14 15 15 13 9 Protection 5 | . 1 . . 14 9 . . . 1 1 Ballistic Gun 8 | . 24 17 27 2 2 . . . . . Ballistic Cannon 7 | . 1 . . 25 13 . . . . . Launcher 1 | . 1 10 . . . . . . . . Slashing Weapon 1 | . . . . . . 7 7 7 8 1 Naked Turns . | . . . . . . . . . . . Heaviest Build 65 | 14 33 34 55 61 65 18 18 19 24 25 Greatest Support 80 | 20 40 40 40 40 80 21 18 20 28 29 Greatest Overweight (x) 4 | 4 . . 1 1 1 . . . . . Average Overweight (x) . | . . . . 1 . . . . . . Largest Inventory Capacity 20 | 8 15 15 20 20 20 10 10 10 10 10 Average Capacity 15 | 7 13 15 16 20 19 10 10 10 10 10 Most Carried 20 | 4 15 15 17 20 20 10 10 10 10 10 Average Carried 14 | 3 11 14 15 19 18 9 9 9 9 9 Final Capacity 20 | 8 15 15 20 20 10 10 10 10 10 10 Final Carried 20 | 4 15 15 17 20 10 10 10 10 10 6 Class Distribution -------------------- 70% | Mutant 25% | Hacker-Sprinter Dominant Class ---------------- Mutant | -10/Materials Mutant | -10/Mines Mutant | -10/Exiles Mutant | -9/Mines Mutant | -8/Materials Hacker-Sprinter | -7/Factory Hacker-Sprinter | -7/Lower Caves Hacker-Sprinter | -7/Lower Caves Hacker-Sprinter | -6/Factory Hacker-Sprinter | -6/Garrison Resources | -11 -10 -10 -10 -9 -8 -7 -7 -7 -6 -6 ----------- Run | Jun Mat Min Exi Min Mat Fac Low Low Fac Gar Matter Collected 3977 | 216 525 481 19 92 1620 356 100 110 205 253 Remotely . | . . . . . . . . . . . Salvage Created 3692 | . 551 118 . 4 1465 259 . 60 678 557 Parts 247 | . 47 9 . . 92 22 . 9 36 32 Haulers Intercepted 10 | . 2 . . . 5 1 . . 2 . Recyclers Shooed 1 | . . . . . 1 . . . . . Parts Field Recycled . | . . . . . . . . . . . Retrieved Matter . | . . . . . . . . . . . Parts Self-Destructed 15 | . . . . . . . . 15 . . Prevented . | . . . . . . . . . . . Kills | -11 -10 -10 -10 -9 -8 -7 -7 -7 -6 -6 ------- Run | Jun Mat Min Exi Min Mat Fac Low Low Fac Gar Combat Hostiles Destroyed 102 | . 14 7 . . 41 5 . 7 11 17 Melee 19 | . . . . . 1 1 . . 11 6 Guns 33 | . 13 4 . . 16 . . . . . Cannons 18 | . 1 . . . 17 . . . . . AOE 32 | . . 3 . . 7 4 . 7 . 11 Classes Destroyed 13 | . 5 2 . 1 3 1 . . . 1 Worker 5 | . . . . 1 . 4 . . . . Builder 3 | . . . . . 2 1 . . . . Tunneler 2 | . . 1 . . . . . . 1 . Hauler 10 | . 2 . . . 5 1 . . 2 . Operator 5 | . 2 . . . 2 1 . . . . Watcher 5 | . 3 . . . 2 . . . . . Swarmer 42 | . 8 3 . . 8 4 . 7 6 6 Cutter 2 | . . . . . 2 . . . . . Grunt 45 | . 6 2 . . 25 . . . 4 8 Sentry 7 | . . . . . 6 . . . . 1 Hunter 1 | . . . . . . . . . . 1 Programmer 3 | . . . . . . 1 . . 1 1 Assembled 2 | . . 2 . . . . . . . . Best Kill Streak 9 | . 4 3 . 1 9 6 . 4 4 9 Combat Bots Only 9 | . 4 3 . . 9 3 . 4 4 9 Max Kills in Single Turn 4 | . 2 2 . 1 4 3 . 3 1 3 Gunslinging 1 | . 1 . . . . . . . . . Exploded 3 | . . 1 . . 3 2 . 3 . 3 Melee 1 | . . . . . 1 1 . . 1 1 Uniques/NPCs Destroyed . | . . . . . . . . . . . Combat | -11 -10 -10 -10 -9 -8 -7 -7 -7 -6 -6 -------- Run | Jun Mat Min Exi Min Mat Fac Low Low Fac Gar Damage Taken 6071 | . 298 196 . . 2738 570 101 185 405 1578 Core 1713 | . 64 55 . . 439 164 21 103 96 771 Absorbed by Shields 90 | . . . . . . . . . . 90 Regen/Repaired (Parts) 320 | . . . . . 223 97 . . . . Core Remaining (%) 57 | 100 . . . 52 20 . . 58 . . Volleys Fired 253 | . 51 17 . 1 161 2 3 5 . 13 Largest 2 | . 2 2 . 2 2 1 1 1 . 1 Hottest 88 | . 78 46 . 78 88 33 33 39 . 39 Shots Fired 464 | . 103 29 . 3 306 2 3 5 . 13 Gun 216 | . 96 24 . . 96 . . . . . Cannon 212 | . 6 . . 3 203 . . . . . Launcher 35 | . 1 5 . . 7 2 3 5 . 12 Special 1 | . . . . . . . . . . 1 Kinetic 428 | . 102 24 . 3 299 . . . . . Thermal . | . . . . . . . . . . . Explosive 35 | . 1 5 . . 7 2 3 5 . 12 Electromagnetic . | . . . . . . . . . . . Robot Hit Streak 31 | . 9 9 . 8 31 . 2 2 . 4 Robot Miss Streak 6 | . 5 2 . . 6 . 1 2 . 1 Penetration Max . | . . . . . . . . . . . Secondary Targets 5 | . 4 . . . 1 . . . . . Max Gunslinging Chain 1 | . 1 . . . 1 . . . . . Shots Hit Robots 380 | . 54 16 . 2 218 21 2 2 30 35 Core Hits 205 | . 24 10 . 1 103 13 1 9 12 32 Critical Kills 3 | . 2 . . . 1 . . . . . Critical Parts Destroyed . | . . . . . . . . . . . Critical Strikes 18 | . 2 . . . 8 1 . . 3 4 Destroy 3 | . 2 . . . 1 . . . . . Blast 7 | . . . . . 7 . . . . . Sever 5 | . . . . . . 1 . . 3 1 Impale 3 | . . . . . . . . . . 3 Melee Attacks 176 | . . . . . 19 53 . . 66 38 Impact . | . . . . . . . . . . . Slashing 145 | . . . . . 19 53 . . 65 8 Piercing 31 | . . . . . . . . . 1 30 Sneak Attacks 9 | . . . . . . 6 . . 3 . Combat Hostiles . | . . . . . . . . . . . Follow-up Attacks 2 | . . . . . . 1 . . 1 . Damage Inflicted 11810 | . 777 543 . 43 4942 942 93 524 1626 2320 Guns 2187 | . 713 227 . . 1247 . . . . . Cannons 2906 | . 64 . . 43 2799 . . . . . Explosions 3136 | . . 316 . . 799 272 93 524 . 1132 Melee 3556 | . . . . . 72 670 . . 1626 1188 Ramming 25 | . . . . . 25 . . . . . Kinetic 5093 | . 777 227 . 43 4046 . . . . . Thermal . | . . . . . . . . . . . Explosive 3112 | . . 316 . . 799 248 93 524 . 1132 Electromagnetic 24 | . . . . . . 24 . . . . Impact . | . . . . . . . . . . . Slashing 2823 | . . . . . 72 670 . . 1626 455 Piercing 733 | . . . . . . . . . . 733 Highest Corruption 2 | . 2 2 2 2 1 1 1 1 . 1 Average Corruption 1 | . 2 2 2 2 1 1 1 1 . 1 Corruption Purged . | . . . . . . . . . . . Corruption Blocked . | . . . . . . . . . . . Effects 68 | . 8 8 5 21 18 1 . 4 . 3 Message Errors 21 | . 2 4 1 5 6 . . 2 . 1 Matter Fused 13 | . 2 2 1 2 6 . . . . . Heat Flow Errors 7 | . 1 1 1 3 . . . . . 1 Energy Discharges 10 | . 2 . 1 4 3 . . . . . Data Loss (minor) 10 | . . . 1 5 2 1 . 1 . . Data Loss (major) 3 | . . . . 1 . . . 1 . 1 Misfires 3 | . 1 . . 1 1 . . . . . Alerts 1 | . . 1 . . . . . . . . Overload Shots . | . . . . . . . . . . . Overflow Damage 244 | . 9 15 . . 42 51 2 . 83 42 Projectiles 51 | . 9 . . . 42 . . . . . Explosions 67 | . . 15 . . . 36 2 . . 14 Melee 126 | . . . . . . 15 . . 83 28 Knockbacks 35 | . . . . 1 34 . . . . . Impact . | . . . . . . . . . . . Kinetic 31 | . . . . 1 30 . . . . . Secondary 4 | . . . . . 4 . . . . . Self-Inflicted Damage 270 | . 17 . . . 97 17 42 . . 97 Shots 9 | . 1 . . . 2 1 1 . . 4 Rammed 4 | . . . . . 4 . . . . . Targets Rammed 4 | . . . . . 4 . . . . . Kicked . | . . . . . . . . . . . Crushed . | . . . . . . . . . . . Highest Temperature 277 | . 159 167 214 249 277 . 1 2 35 137 Average Temperature 50 | . 31 60 111 92 69 . 1 2 6 24 Received Heat Transfer 2117 | . 48 36 . . 1422 75 12 45 84 395 Effects 3 | . . . . . 3 . . . . . Energy Bleed 1 | . . . . . 1 . . . . . Interference 2 | . . . . . 2 . . . . . Siege Activations . | . . . . . . . . . . . Robots Corrupted . | . . . . . . . . . . . Combat Hostiles . | . . . . . . . . . . . Parts Fried . | . . . . . . . . . . . Impact Corruptions . | . . . . . . . . . . . Robots Melted . | . . . . . . . . . . . Combat Hostiles . | . . . . . . . . . . . Parts Melted . | . . . . . . . . . . . Heat Transferred . | . . . . . . . . . . . Parts Sabotaged . | . . . . . . . . . . . Parts Stolen 1 | . . . . . . . 1 . . . Parts Stripped . | . . . . . . . . . . . Power Chain Reactions . | . . . . . . . . . . . Missiles Intercepted . | . . . . . . . . . . . Alert | -11 -10 -10 -10 -9 -8 -7 -7 -7 -6 -6 ------- Run | Jun Mat Min Exi Min Mat Fac Low Low Fac Gar Peak Influence 1333 | . 323 177 . 5 785 901 . . 667 1333 Initial 408 | . . 7 . . . 302 . . 323 408 Average 260 | . 137 46 . 1 288 467 . . 485 1064 Maximum Alert Level 4 | . 1 . . . 3 3 . . 2 4 Low Security (%) 48 | 100 78 100 . 100 24 . . . . . Level 1 24 | . 21 . . . 42 36 . . 25 . Level 2 21 | . . . . . 30 54 . . 74 10 Level 3 3 | . . . . . 1 8 . . . 43 Level 4 2 | . . . . . . . . . . 45 Level 5 . | . . . . . . . . . . . High Security . | . . . . . . . . . . . Max Security . | . . . . . . . . . . . Squads Dispatched 21 | . 3 . . 1 8 4 . . 5 . Investigation 8 | . 1 . . 1 2 2 . . 2 . Extermination 2 | . . . . . . 1 . . 1 . Reinforcement 9 | . 2 . . . 5 1 . . 1 . Assault 1 | . . . . . 1 . . . . . Garrison 1 | . . . . . . . . . 1 . Intercept . | . . . . . . . . . . . Searches Triggered 1 | . . . . . . . . . 1 . Construction Impeded 2 | . . . . . 2 . . . . . Haulers Reinforced 2 | . . . . . . 1 . . 1 . Active Scanning Responses . | . . . . . . . . . . . Cargo Convoy Interrupts . | . . . . . . . . . . . Stealth | -11 -10 -10 -10 -9 -8 -7 -7 -7 -6 -6 --------- Run | Jun Mat Min Exi Min Mat Fac Low Low Fac Gar Distress Signals 8 | . 1 1 . . 4 2 . . . . Communications Jammed 1 | . . . . . . 1 . . . . Distress Signals 1 | . . . . . . 1 . . . . Times Spotted 223 | . 24 8 . . 82 38 2 23 30 16 Peak Tracking Total 13 | . 6 3 . . 10 13 1 6 9 5 Tactical Retreats 35 | . 3 1 . . 9 11 . 3 6 2 Traps | -11 -10 -10 -10 -9 -8 -7 -7 -7 -6 -6 ------- Run | Jun Mat Min Exi Min Mat Fac Low Low Fac Gar Traps Triggered 9 | . 2 . . . 1 1 . . . 5 Indirectly . | . . . . . . . . . . . Trap Hack Attempts . | . . . . . . . . . . . Triggered . | . . . . . . . . . . . Disarmed . | . . . . . . . . . . . Reprogrammed . | . . . . . . . . . . . Reused . | . . . . . . . . . . . Traps Extracted . | . . . . . . . . . . . Installed . | . . . . . . . . . . . Triggered 1 | . . 1 . . . . . . . . Machines | -11 -10 -10 -10 -9 -8 -7 -7 -7 -6 -6 ---------- Run | Jun Mat Min Exi Min Mat Fac Low Low Fac Gar Machines Disabled 16 | . 2 . . . 4 3 . . . 7 Max in Single Turn 2 | . 1 . . . 1 2 . . . 2 Garrison Access 1 | . . . . . 1 . . . . . Garrison Relay 5 | . . . . . . . . . . 5 Phase Generator 1 | . . . . . . . . . . 1 Machines Repaired . | . . . . . . . . . . . Machines Sabotaged . | . . . . . . . . . . . Overloaded Fab Kills . | . . . . . . . . . . . Hacking | -11 -10 -10 -10 -9 -8 -7 -7 -7 -6 -6 --------- Run | Jun Mat Min Exi Min Mat Fac Low Low Fac Gar Machines Accessed 52 | . 7 . 1 1 12 13 1 2 12 3 Terminals 32 | . 7 . . . 8 7 1 . 6 3 Fabricators 5 | . . . . . . 3 . . 2 . Repair Stations 3 | . . . . . 1 1 . . 1 . Recycling Units 1 | . . . . . 1 . . . . . Scanalyzers 5 | . . . . . 1 2 . . 2 . Garrison Access 2 | . . . . . 1 . . . 1 . Total Hacks 141 | . 21 . 4 1 32 41 2 6 27 7 Successful 88 | . 10 . 4 1 21 28 2 6 14 2 Failed 53 | . 11 . . . 11 13 . . 13 5 Catastrophic 5 | . . . . . 3 . . . 2 . Database Lockouts . | . . . . . . . . . . . Manual 51 | . 9 . . . 12 16 . . 13 1 Terminals 90 | . 21 . . . 21 24 2 . 15 7 Fabricators 11 | . . . . . . 7 . . 4 . Repair Stations 9 | . . . . . 2 4 . . 3 . Recycling Units 3 | . . . . . 3 . . . . . Scanalyzers 15 | . . . . . 5 6 . . 4 . Garrison Access 2 | . . . . . 1 . . . 1 . Terminal Hacks 45 | . 10 . 4 1 7 10 2 6 3 2 Record 12 | . . . 4 . . 1 2 5 . . Part Schematic 2 | . 1 . . . . 1 . . . . Robot Analysis 1 | . 1 . . . . . . . . . Prototype ID Bank 2 | . . . . . 1 1 . . . . Open Door 2 | . . . . 1 . . . 1 . . Open DSF 1 | . . . . . . 1 . . . . Branch Access Points 1 | . . . . . 1 . . . . . Emergency Access Points 1 | . . . . . . 1 . . . . Machine Index 1 | . . . . . . 1 . . . . Terminal Index 3 | . 1 . . . . 1 . . 1 . Repair Station Index 1 | . . . . . . . . . 1 . Alert Level 4 | . 1 . . . 1 1 . . 1 . Unreport Threat 3 | . 1 . . . 2 . . . . . Locate Traps 2 | . 1 . . . . 1 . . . . Transport Status 1 | . . . . . . 1 . . . . Reinforcement Status 1 | . . . . . 1 . . . . . Hauler Manifests 1 | . 1 . . . . . . . . . Registered Components 2 | . 1 . . . 1 . . . . . Registered Prototypes 1 | . 1 . . . . . . . . . Zone Layout 1 | . 1 . . . . . . . . . Patrol Navigation 1 | . . . . . . . . . . 1 Security Stations 1 | . . . . . . . . . . 1 Fabricator Hacks 6 | . . . . . . 3 . . 3 . Network Status 1 | . . . . . . 1 . . . . Load Schematic 3 | . . . . . . 1 . . 2 . Build 2 | . . . . . . 1 . . 1 . Repair Station Hacks 7 | . . . . . 2 4 . . 1 . Scan Component 4 | . . . . . 1 2 . . 1 . Repair 3 | . . . . . 1 2 . . . . Recycling Unit Hacks 2 | . . . . . 2 . . . . . Report Inventory 1 | . . . . . 1 . . . . . Retrieve Components 1 | . . . . . 1 . . . . . Scanalyzer 13 | . . . . . 4 6 . . 3 . Insert Component 7 | . . . . . 2 3 . . 2 . Analyze 6 | . . . . . 2 3 . . 1 . Garrison Access Hacks 2 | . . . . . 1 . . . 1 . Unlock Access 1 | . . . . . . . . . 1 . Seal Access 1 | . . . . . 1 . . . . . Unauthorized Hacks 13 | . . . . . 5 5 . . 3 . Terminals 13 | . . . . . 5 5 . . 3 . Assimilate 4 | . . . . . . 1 . . 3 . Botnet 9 | . . . . . 5 4 . . . . Fabricators . | . . . . . . . . . . . Repair Stations . | . . . . . . . . . . . Recycling Units . | . . . . . . . . . . . Scanalyzers . | . . . . . . . . . . . Garrison Access . | . . . . . . . . . . . Data Cores Recovered 2 | . 1 . . . . 1 . . . . Used . | . . . . . . . . . . . Hacking Detections 43 | . 7 . . . 10 12 . . 11 3 Full Trace Events 7 | . . . . . 3 2 . . 2 . Feedback Events . | . . . . . . . . . . . Feedback Blocked . | . . . . . . . . . . . Robot Schematics Acquired . | . . . . . . . . . . . Robots Built . | . . . . . . . . . . . Authchips . | . . . . . . . . . . . Time . | . . . . . . . . . . . Total Robot Build Rating . | . . . . . . . . . . . Part Schematics Acquired 8 | . 1 . . . 2 4 . . 1 . Parts Built 2 | . . . . . . 1 . . 1 . Authchips . | . . . . . . . . . . . Time 268 | . . . . . . 134 . . 134 . Total Part Build Rating 8 | . . . . . . 4 . . 4 . Parts Repaired 3 | . . . . . 1 2 . . . . Time 87 | . . . . . 38 49 . . . . Parts Recycled . | . . . . . . . . . . . Recycled Matter . | . . . . . . . . . . . Retrieved Matter . | . . . . . . . . . . . Retrieved Components 10 | . . . . . 10 . . . . . Parts Scanalyzed 6 | . . . . . 2 3 . . 1 . Part Schematics Acquired 6 | . . . . . 2 3 . . 1 . Parts Damaged . | . . . . . . . . . . . Bothacking | -11 -10 -10 -10 -9 -8 -7 -7 -7 -6 -6 ------------ Run | Jun Mat Min Exi Min Mat Fac Low Low Fac Gar Used RIF Installer . | . . . . . . . . . . . Robots Hacked . | . . . . . . . . . . . Non-combat . | . . . . . . . . . . . Combat . | . . . . . . . . . . . Robot Hacks Applied . | . . . . . . . . . . . Relay Couplers Released 21 | . . . . . . . . . . 21 Machine Destruction 21 | . . . . . . . . . . 21 Fabnet Peak Effective % . | . . . . . . . . . . . Robots Rewired 2 | . . . . . . 1 . . . 1 Allies Hacked . | . . . . . . . . . . . Hacks Repelled . | . . . . . . . . . . . Allies | -11 -10 -10 -10 -9 -8 -7 -7 -7 -6 -6 -------- Run | Jun Mat Min Exi Min Mat Fac Low Low Fac Gar Total Allies 7 | . . 1 . . . 2 . . 3 1 Largest Group 2 | . . 1 . . . 1 . . 2 1 Highest-Rated Group 116 | . . 31 . . . 26 . . 36 116 Highest-Rated Ally 116 | . . 31 . . . 26 . . 26 116 Total Orders 8 | . . . . . . 2 . . 6 . STAY 5 | . . . . . . 1 . . 4 . FOLLOW 3 | . . . . . . 1 . . 2 . Ally Attacks 8 | . . 2 . . . 2 . . . 4 Total Damage 487 | . . 42 . . . 52 . . . 393 Kills . | . . . . . . . . . . . Allies Corrupted . | . . . . . . . . . . . Allies Melted . | . . . . . . . . . . . Intel | -11 -10 -10 -10 -9 -8 -7 -7 -7 -6 -6 ------- Run | Jun Mat Min Exi Min Mat Fac Low Low Fac Gar Robot Analysis Total 1 | . 1 . . . . . . . . . Derelict Logs Recovered 8 | . . 2 . 3 . . 1 2 . . Drone Launches . | . . . . . . . . . . . Drone Recoveries . | . . . . . . . . . . . Exploration | -11 -10 -10 -10 -9 -8 -7 -7 -7 -6 -6 ------------- Run | Jun Mat Min Exi Min Mat Fac Low Low Fac Gar Turns Passed 10023 | 64 1737 763 556 1313 3030 769 253 490 615 433 Spaces Moved 10154 | 37 954 414 311 532 1451 1664 937 1445 1437 972 Core 15 | 15 . . . . . . . . . . Treads 3283 | . 861 414 311 532 1165 . . . . . Legs 115 | 22 93 . . . . . . . . . Wheels . | . . . . . . . . . . . Hover . | . . . . . . . . . . . Flight 6741 | . . . . . 286 1664 937 1445 1437 972 Fastest Speed 23 | 50 120 160 160 240 27 26 26 26 23 23 Average Speed 78 | 138 156 160 176 240 159 27 26 26 23 23 Slowest Speed 250 | 250 160 160 240 240 250 32 26 26 23 26 Overloaded Moves . | . . . . . . . . . . . Propulsion Burnouts . | . . . . . . . . . . . Robots Hopped 25 | . . . . . 3 20 . . 2 . Cave-ins Triggered . | . . . . . . . . . . . Exploration Rate (%) 68 | 4 97 84 67 96 75 30 88 99 26 85 Regions Visited 10 Branch Regions 5 Pre-discovered Areas 4 | . . 2 1 1 . . . . . . Known Exits Taken 4 | . . . . . . 1 1 1 1 . Unknown Exits Taken 6 | 1 1 1 1 1 1 . . . . . Scrap Searched 7 | . . . . 1 . . 1 5 . . Spaces Dug 80 | . . 8 . . 7 25 . 10 25 5 Terrain Destroyed 409 | . 6 39 . 1 54 25 14 48 25 197 Melee 52 | . . . . . 7 18 . . 25 2 Projectile 11 | . 1 . . 1 9 . . . . . AOE 346 | . 5 39 . . 38 7 14 48 . 195 Terrain Rammed . | . . . . . . . . . . . Walls Destroyed . | . . . . . . . . . . . Machines Disabled . | . . . . . . . . . . . Actions | -11 -10 -10 -10 -9 -8 -7 -7 -7 -6 -6 --------- Run | Jun Mat Min Exi Min Mat Fac Low Low Fac Gar Total 11440 | 46 1105 480 318 568 1844 1858 943 1556 1612 1110 Wait 434 | . 46 29 . 21 87 78 . 94 61 18 Move 10095 | 36 953 413 310 531 1444 1623 936 1444 1433 972 Hop 25 | . . . . . 3 20 . . 2 . Pick Up 95 | 4 22 2 3 6 30 12 1 3 11 1 Fast Attach 42 | 6 6 . . . 9 8 . 1 11 1 Attach 52 | . . . . . 19 13 2 3 6 9 Detach 28 | . 4 . . . 7 6 1 3 3 4 Swap 74 | . 6 16 3 5 24 11 . . 4 5 Drop 98 | . 17 3 2 4 37 12 . 3 19 1 Fire 253 | . 51 17 . 1 161 2 3 5 . 13 Melee 171 | . . . . . 19 52 . . 62 38 Ram . | . . . . . . . . . . . Kick . | . . . . . . . . . . . Crush 4 | . . . . . 4 . . . . . Escape Stasis 66 | . . . . . . 18 . . . 48 Rewire 3 | . . . . . . 3 . . . . Trap . | . . . . . . . . . . . Miscellaneous . | . . . . . . . . . . . Route ------- -11/Junkyard -10/Materials (discovered 4 exits: [*Mat x3] / [*Min]) -10/Mines (discovered 3 exits: [*Mat x2] / *Exi) -10/Exiles -9/Mines (discovered 2 exits: *Mat x2) -8/Materials (discovered 2 exits: *Fac x2) -7/Factory (discovered 2 exits: *Fac / *Low) -7/Lower Caves -7/Lower Caves (discovered 2 exits: *Fac / *Zio) -6/Factory (discovered 5 exits: [*Fac] / Low / *Ext x2 / Gar) -6/Garrison (discovered 3 exits: *Fac x3) History --------- Turn | Location | Event 13 | -11/Junkyard | Discovered new exit (range 15) 65 | -11/Junkyard | Entered Materials 318 | -10/Materials | Build established: Mutant 869 | -10/Materials | Discovered new exit (range 13) 1203 | -10/Materials | Discovered new exit (range 16) 1241 | -10/Materials | Discovered new exit (range 9) 1253 | -10/Materials | Discovered new exit (range 9) 1802 | -10/Materials | Entered Mines 1812 | -10/Mines | Met a Derelict bent on vengeance 1834 | -10/Mines | YI-UF0 nonchalantly dropped a Grenade Launcher on the ground 1852 | -10/Mines | Discovered new exit (range 6) 2123 | -10/Mines | Learned location of Storage (-9) 2199 | -10/Mines | Assembled infested the area 2325 | -10/Mines | Escorted by a lone wolf Derelict 2374 | -10/Mines | Discovered new exit (range 7) 2393 | -10/Mines | Deemed a non-threat by the Exiles lab entrance 2415 | -10/Mines | Joined a pair of Derelicts in attacking an 0b10 outpost 2557 | -10/Mines | Discovered new exit (range 5) 2565 | -10/Mines | Entered Exiles 2565 | -10/Exiles | Accompanied by 1 ally 2604 | -10/Exiles | Met 8R-AWN 2631 | -10/Exiles | Met EX-HEX 2684 | -10/Exiles | Met EX-BIN 2700 | -10/Exiles | Met EX-DEC 2714 | -10/Exiles | Learned location of Zion (-7) 2797 | -10/Exiles | Visited The Gauntlet 3096 | -10/Exiles | Discovered new exit (range 10) 3121 | -10/Exiles | Entered Mines 3129 | -9/Mines | Met a Derelict shopkeep closing up shop 3349 | -9/Mines | Discovered new exit (range 11) 3484 | -9/Mines | Learned Materials terminal intel 4058 | -9/Mines | Discovered new exit (range 10) 4082 | -9/Mines | Received a Rocket Launcher from a helpful Derelict 4167 | -9/Mines | Learned Materials interactive machine intel 4211 | -9/Mines | Found a hidden stash of uninstalled traps 4434 | -9/Mines | Entered Materials 4434 | -8/Materials | Evolved 4 slots: Propulsion x2, Utility x2 4435 | -8/Materials | Loaded intel: 19 interactive machine locations 4436 | -8/Materials | Loaded intel: 12 terminal locations 4790 | -8/Materials | Destroyed 9 combat bots 5573 | -8/Materials | Discovered new exit (range 15) 5886 | -8/Materials | Repaired Arm. Treads? 6506 | -8/Materials | Lost 3 parts (1n2w) 6834 | -8/Materials | First assault squad dispatched 7390 | -8/Materials | Core integrity fell below 50% 7451 | -8/Materials | Discovered new exit (range 5) 7464 | -8/Materials | Entered Factory 7464 | -7/Factory | Evolved 2 slots: Utility x2 7518 | -7/Factory | Lost 3 parts (1n2u) 7532 | -7/Factory | Discovered new exit (range 5) 7546 | -7/Factory | Build established: Hacker-Sprinter 7607 | -7/Factory | Repaired Surge Thruster 7638 | -7/Factory | Repaired Imp. VTOL Module 7759 | -7/Factory | Identified exit to Factory 8055 | -7/Factory | Discovered new exit (range 16) 8059 | -7/Factory | Identified exit to Lower Caves 8178 | -7/Factory | Fabricated Imp. Cesium-ion Thruster? 8207 | -7/Factory | Lost 3 parts (1p1n1u) 8233 | -7/Factory | Entered Lower Caves 8403 | -7/Lower Caves | Spotted B-75 Beast 8422 | -7/Lower Caves | Identified exit to Lower Caves 8467 | -7/Lower Caves | Encountered a Warlord checkpoint 8486 | -7/Lower Caves | Entered another Lower Caves area 8509 | -7/Lower Caves | Learned Research trap positions 8509 | -7/Lower Caves | Learned Armory trap positions 8509 | -7/Lower Caves | Learned Armory stockpile data 8509 | -7/Lower Caves | Learned Armory garrison access intel 8531 | -7/Lower Caves | Discovered exit to Factory (range 7) 8849 | -7/Lower Caves | Discovered new exit (range 10) 8879 | -7/Lower Caves | Identified exit to Zion 8976 | -7/Lower Caves | Entered Factory 8976 | -6/Factory | Evolved 2 slots: Propulsion x1, Utility x1 8977 | -6/Factory | Identified exit to Lower Caves 8977 | -6/Factory | Identified exit to Extension 9281 | -6/Factory | Fabricated Imp. Cesium-ion Thruster? 9326 | -6/Factory | Search patrols dispatched 9493 | -6/Factory | Garrison activated, responded to threat 9508 | -6/Factory | Discovered exit to Extension (range 14) 9540 | -6/Factory | Discovered new exit (range 8) 9543 | -6/Factory | Spotted B-75 Beast 9591 | -6/Factory | Identified exit to Garrison 9591 | -6/Factory | Entered Garrison 9637 | -6/Garrison | Garrison Relay disabled 9638 | -6/Garrison | Triggered checkpoint 9642 | -6/Garrison | Destroyed 9 combat bots 9654 | -6/Garrison | Discovered new exit (range 14) 9657 | -6/Garrison | Identified exit to Factory 9671 | -6/Garrison | Phase Generator disabled 9704 | -6/Garrison | Triggered checkpoint 9740 | -6/Garrison | Garrison Relay disabled 9766 | -6/Garrison | Discovered exit to Factory (range 8) 9768 | -6/Garrison | Spotted B-90 Cyclops 9809 | -6/Garrison | Discovered exit to Factory (range 10) 9826 | -6/Garrison | Triggered checkpoint 9860 | -6/Garrison | Garrison Relay disabled 9878 | -6/Garrison | Learned Factory security intel 9884 | -6/Garrison | Garrison Relay disabled 9894 | -6/Garrison | Garrison Relay disabled 9983 | -6/Garrison | Core integrity fell below 50% 9988 | -6/Garrison | Rewired B-86 Titan 10018 | -6/Garrison | Core integrity fell below 20% 10024 | -6/Garrison | Destroyed by B-90 Cyclops with Nova Cannon Last Messages --------------- 09983_ B-90 Cyclops suffers critical hit (Impale). 09985_ B-90 Cyclops activates siege mode. 09986_ Lgt. Fission Core destroyed. 09987_ Hacking Suite destroyed. 09988_ B-86 Titan rewired. 09990_ Imp. VTOL Module destroyed. 09992_ B-90 Cyclops Med. Insulated Plating blasted off. 09992_ Slug penetrates B-90 Cyclops. 09995_ Machine disabled. 09995_ Slug penetrates B-90 Cyclops. 10012_ Imp. Cesium-ion Thruster destroyed. 10013_ B-90 Cyclops exits siege mode. 10015_ Imp. Cesium-ion Thruster destroyed. 10016_ Nuclear Pulse Thruster destroyed. 10018_ Ripper destroyed. 10020_ B-90 Cyclops activates siege mode. 10020_ Imp. VTOL Module destroyed. 10021_ Destroyed Adv. Power Amplifier. 10023_ Imp. Cesium-ion Thruster destroyed. 10024_ Lgt. Angular Momentum Engine destroyed. Map ----- +----------------------------------------------------+ | | | | | | | | | | | | | | | | | | | | | | | | | | | | | | | ????????????????????????????????????????????????? | | ????????????????????????????????????????????????? | | ????????????##############??????????????????????? | | ????????????""BB"""%="""""#?????????????????????? | | ?????????? """BB"""! """m"#?????????????????????? | | ??????????" !""#?????????????????????? | | ??????????" ""#?????????????????????? | | ?????????"" = %"#?????????????????????? | | ????????# ! %BB#?????????????????????? | | ????????# BB#?????????????????????? | | ?????????"" ] ] %@"#?????????????????????? | | ?????????"" "#?????????????????????? | | ????????#"" #?????????????????????? | | ????????# BB#?????????????????????? | | ????????# ! BB#??####???????????????? | | ?????????"" ""#??#""#???????????????? | | ?????????#" "##??# T#???????????????? | | ??????????# ##???# "#???????????????? | | ??????????# "#???# ##???????????????? | | ??????????####;###;;# ;##???# #????????????????? | | ?????????????#???#### ##????# #????????????????? | | ????????????????????# #?????# #????????????????? | | ???????????????????#; #?????# ####"""###???????? | | ??????????????????### #???### #???????? | | ??????????????????# #???#"# ##### ## #???????? | | ??????????????????# < #???#"!!#???# ## #???????? | | ??????????????????# #???#! #???# ## #???????? | | ??????????????????### #???#"! #???# ## #???????? | | ????????????????????# #???#"# #???# ## #???????? | | ????????????????????# #???### ##### ## #???????? | | ????????????????????# #?????# ## #???????? | | ????????????????????# #?????# ######## #???????? | | ????????????????????# ####### ######## #######?? | | ????????????????????# #?? | | ????????????????????# #?? | +----------------------------------------------------+ Best States ------------- Heat Dissipation 45 Energy Generation 18 Energy Capacity 290 Matter Stores 300 Matter Capacity 300 Sight Range 18 Robot Scan Range 15 Terrain Scan Density 10 Jamming Range 12 Armor Coverage 300 Weapon Cycling 15 Evasion (%) 65 Targeting Accuracy 5 Melee Accuracy 12 Target Analysis 5 Recoil Reduction 8 Offensive Hacking 20 Item Schematics ----------------- Hcp. Storage Unit | -10/Materials | Hacked Hpw. Tractor Beam | -8/Materials | Scanalyzed Huge Storage Unit | -8/Materials | Scanalyzed Imp. VTOL Module | -7/Factory | Scanalyzed Imp. Cesium-ion Thruster | -7/Factory | Scanalyzed Blade Saw | -7/Factory | Scanalyzed System Guard | -7/Factory | Hacked Hacking Suite | -6/Factory | Scanalyzed Robot Schematics ------------------ None Fabricated ------------ Imp. Cesium-ion Thruster | x1 | -7/Factory Imp. Cesium-ion Thruster | x1 | -6/Factory Alien Tech Used ----------------- None Achievements -------------- None Challenges ------------ None Game ------ Seed GuidanceAccelerationMachine Manual? 0 Play Time 02:33:44 Cumulative 146.0 hours Start 2023.03.27 @ 11:40:07 End 2023.03.28 @ 01:15:29 Sessions 3 Manual Loads 0 Difficulty Rogue Special Mode None Game No. 81 Rogue 81 Adventurer 0 Explorer 0 Win Type - Total 2 Types 2/0/0/0/0/0/0/0/0 Lore% 50 Gallery% 60 Achievement% 49 Wizard Run 0 Options --------- ASCII 0 Keyboard 1 Movement Vi Keybinds 0 Fullscreen 1 Font 12/Smallcaps Map View 83x54 Tactical HUD 1 Map Filters NONE Filters NONE Steam 1 RUN: 6413b866-8bd9-4e4b-b1ea-8fbfd6a986d7